[Event "Titled Tuesday Blitz February 28 Early 2023"]
[White "Gauri, Shankar"]
[Black "Paravyan, David"]
[WhiteFideId "5041350"]
[BlackFideId "4194985"]
[WhiteElo "2240"]
[BlackElo "2577"]
[Result "0-1"]
[Round "02"]
[TimeControl "180+2"]
[Date "2023.02.28"]
[WhiteClock "0:00:03"]
[BlackClock "0:00:08"]

1. d4 {[%clk 0:02:57]}  Nf6 {[%clk 0:02:59]} 2. Nf3 {[%clk 0:02:57]}  g6 {[%clk 0:03:00]} 3. Nbd2 {[%clk 0:02:55]}  d5 {[%clk 0:03:00]} 4. b4 {[%clk 0:02:55]}  Bg7 {[%clk 0:02:58]} 5. e3 {[%clk 0:02:55]}  a5 {[%clk 0:02:58]} 6. b5 {[%clk 0:02:54]}  c5 {[%clk 0:02:59]} 7. bxc6 {[%clk 0:02:49]}  Nxc6 {[%clk 0:02:59]} 8. Ba3 {[%clk 0:02:35]}  O-O {[%clk 0:02:59]} 9. c4 {[%clk 0:02:25]}  Bf5 {[%clk 0:02:57]} 10. Rc1 {[%clk 0:01:53]}  Nb4 {[%clk 0:02:56]} 11. Qb3 {[%clk 0:01:53]}  Qd7 {[%clk 0:01:50]} 12. Be2 {[%clk 0:01:38]}  dxc4 {[%clk 0:01:41]} 13. Nxc4 {[%clk 0:01:33]}  Be6 {[%clk 0:01:35]} 14. Qb1 {[%clk 0:01:09]}  Qa4 {[%clk 0:01:32]} 15. Bd1 {[%clk 0:00:43]}  Qb5 {[%clk 0:01:25]} 16. Be2 {[%clk 0:00:36]}  Rfc8 {[%clk 0:01:22]} 17. Nfd2 {[%clk 0:00:34]}  Nfd5 {[%clk 0:00:45]} 18. O-O {[%clk 0:00:32]}  Qa4 {[%clk 0:00:45]} 19. Bd1 {[%clk 0:00:17]}  Qe8 {[%clk 0:00:43]} 20. Bf3 {[%clk 0:00:14]}  b5 {[%clk 0:00:39]} 21. Bxb4 {[%clk 0:00:14]}  bxc4 {[%clk 0:00:21]} 22. Bc5 {[%clk 0:00:12]}  Rab8 {[%clk 0:00:21]} 23. Qe4 {[%clk 0:00:05]}  c3 {[%clk 0:00:13]} 24. Nc4 {[%clk 0:00:05]}  Nf6 {[%clk 0:00:13]} 25. Qd3 {[%clk 0:00:05]}  Qb5 {[%clk 0:00:12]} 26. Ne5 {[%clk 0:00:05]}  Bxa2 {[%clk 0:00:07]} 27. Rxc3 {[%clk 0:00:04]}  Qxd3 {[%clk 0:00:07]} 28. Nxd3 {[%clk 0:00:04]}  Bd5 {[%clk 0:00:08]} 29. Ra1 {[%clk 0:00:04]}  Ne4 {[%clk 0:00:07]} 30. Bxe4 {[%clk 0:00:04]}  Bxe4 {[%clk 0:00:08]} 31. f3 {[%clk 0:00:04]}  Bxd3 {[%clk 0:00:09]} 32. Rxd3 {[%clk 0:00:04]}  Rxc5 {[%clk 0:00:09]} 33. Rda3 {[%clk 0:00:02]}  Rcb5 {[%clk 0:00:06]} 34. Rxa5 {[%clk 0:00:02]}  Rb1+ {[%clk 0:00:06]} 35. Kf2 {[%clk 0:00:02]}  Rxa1 {[%clk 0:00:06]} 36. Rxa1 {[%clk 0:00:02]}  Rb2+ {[%clk 0:00:06]} 37. Kg3 {[%clk 0:00:03]}  Bf6 {[%clk 0:00:07]} 38. f4 {[%clk 0:00:03]}  e6 {[%clk 0:00:07]} 39. Kf3 {[%clk 0:00:03]}  Kg7 {[%clk 0:00:08]} 40. h3 {[%clk 0:00:03]}  h5 {[%clk 0:00:08]} 41. g4 {[%clk 0:00:04]}  hxg4+ {[%clk 0:00:09]} 42. hxg4 {[%clk 0:00:05]}  Rb3 {[%clk 0:00:09]} 43. Ra4 {[%clk 0:00:04]}  Be7 {[%clk 0:00:08]} 44. Ke4 {[%clk 0:00:04]}  Bb4 {[%clk 0:00:08]} 45. Ra2 {[%clk 0:00:04]}  Bd6 {[%clk 0:00:07]} 46. Rf2 {[%clk 0:00:03]}  f5+ {[%clk 0:00:08]} 47. gxf5 {[%clk 0:00:02]}  gxf5+ {[%clk 0:00:09]} 48. Kf3 {[%clk 0:00:03]}  Bc7 {[%clk 0:00:07]} 49. Rd2 {[%clk 0:00:02]}  Bb6 {[%clk 0:00:07]} 50. Ke2 {[%clk 0:00:02]}  Kf6 {[%clk 0:00:08]} 51. Ra2 {[%clk 0:00:03]}  Ke7 {[%clk 0:00:08]} 52. Ra6 {[%clk 0:00:03]}  Kd6 {[%clk 0:00:07]} 53. Ra8 {[%clk 0:00:02]}  Kd5 {[%clk 0:00:07]} 54. Re8 {[%clk 0:00:03]}  Rb2+ {[%clk 0:00:05]} 55. Kf3 {[%clk 0:00:03]}  Bc7 {[%clk 0:00:06]} 56. Re7 {[%clk 0:00:03]}  Bd6 {[%clk 0:00:06]} 57. Re8 {[%clk 0:00:03]}  Rb1 {[%clk 0:00:07]} 58. Rd8 {[%clk 0:00:03]}  Rf1+ {[%clk 0:00:07]} 59. Ke2 {[%clk 0:00:03]}  Ra1 {[%clk 0:00:07]} 60. Kf3 {[%clk 0:00:04]}  Ra7 {[%clk 0:00:07]} 61. Ke2 {[%clk 0:00:03]}  Rb7 {[%clk 0:00:06]} 62. Kf3 {[%clk 0:00:04]}  Rb6 {[%clk 0:00:07]} 63. Ke2 {[%clk 0:00:03]}  Ke4 {[%clk 0:00:07]} 64. Re8 {[%clk 0:00:02]}  Rb2+ {[%clk 0:00:08]} 65. Kd1 {[%clk 0:00:03]}  Kd5 {[%clk 0:00:07]} 66. Ke1 {[%clk 0:00:03]}  Rh2 {[%clk 0:00:08]} 67. Kf1 {[%clk 0:00:03]}  Bb4 {[%clk 0:00:08]} 0-1


[Site "https://www.chess.com"]

[Event "Titled Tuesday Blitz February 28 Early 2023"]
[White "Erigaisi Arjun"]
[Black "Sadubayev, Airat"]
[WhiteFideId "35009192"]
[BlackFideId "13713264"]
[WhiteElo "2737"]
[BlackElo "2101"]
[Result "1-0"]
[Round "02"]
[TimeControl "180+2"]
[Date "2023.02.28"]
[WhiteClock "0:01:09"]
[BlackClock "0:00:19"]

1. c4 {[%clk 0:02:52]}  e6 {[%clk 0:02:58]} 2. Nc3 {[%clk 0:02:52]}  d5 {[%clk 0:02:58]} 3. d4 {[%clk 0:02:52]}  c5 {[%clk 0:02:58]} 4. cxd5 {[%clk 0:02:51]}  exd5 {[%clk 0:02:58]} 5. e3 {[%clk 0:02:51]}  Nc6 {[%clk 0:02:51]} 6. Nf3 {[%clk 0:02:49]}  c4 {[%clk 0:02:49]} 7. b3 {[%clk 0:02:44]}  Bb4 {[%clk 0:02:48]} 8. Bd2 {[%clk 0:02:44]}  Bxc3 {[%clk 0:02:42]} 9. Bxc3 {[%clk 0:02:45]}  b5 {[%clk 0:02:41]} 10. bxc4 {[%clk 0:02:44]}  bxc4 {[%clk 0:02:38]} 11. Bxc4 {[%clk 0:02:35]}  dxc4 {[%clk 0:02:14]} 12. d5 {[%clk 0:02:36]}  Nf6 {[%clk 0:02:09]} 13. dxc6 {[%clk 0:02:36]}  Bg4 {[%clk 0:01:38]} 14. Qxd8+ {[%clk 0:02:31]}  Rxd8 {[%clk 0:01:37]} 15. Bxf6 {[%clk 0:02:31]}  gxf6 {[%clk 0:01:37]} 16. Nd4 {[%clk 0:02:32]}  Ke7 {[%clk 0:01:32]} 17. Kd2 {[%clk 0:02:30]}  Kd6 {[%clk 0:01:26]} 18. Kc3 {[%clk 0:02:29]}  Be6 {[%clk 0:01:25]} 19. Rab1 {[%clk 0:02:20]}  Rb8 {[%clk 0:01:24]} 20. e4 {[%clk 0:02:09]}  Kc5 {[%clk 0:01:14]} 21. c7 {[%clk 0:02:06]}  Rbc8 {[%clk 0:01:12]} 22. Rb7 {[%clk 0:02:06]}  a6 {[%clk 0:01:03]} 23. Rhb1 {[%clk 0:01:57]}  Rhe8 {[%clk 0:00:58]} 24. R1b6 {[%clk 0:01:56]}  Bd7 {[%clk 0:00:54]} 25. Rxf6 {[%clk 0:01:42]}  Rxe4 {[%clk 0:00:49]} 26. Nc2 {[%clk 0:01:39]}  Be6 {[%clk 0:00:44]} 27. Nb4 {[%clk 0:01:33]}  a5 {[%clk 0:00:39]} 28. Na6+ {[%clk 0:01:32]}  Kd6 {[%clk 0:00:39]} 29. Rb8 {[%clk 0:01:31]}  Rxc7 {[%clk 0:00:32]} 30. Nxc7 {[%clk 0:01:32]}  Kxc7 {[%clk 0:00:32]} 31. Rb5 {[%clk 0:01:32]}  a4 {[%clk 0:00:27]} 32. Ra5 {[%clk 0:01:30]}  Re1 {[%clk 0:00:26]} 33. Rxa4 {[%clk 0:01:29]}  Rg1 {[%clk 0:00:27]} 34. Rxe6 {[%clk 0:01:23]}  fxe6 {[%clk 0:00:26]} 35. Rxc4+ {[%clk 0:01:24]}  Kd6 {[%clk 0:00:27]} 36. g3 {[%clk 0:01:23]}  Rf1 {[%clk 0:00:26]} 37. Rf4 {[%clk 0:01:21]}  Rh1 {[%clk 0:00:24]} 38. Rh4 {[%clk 0:01:20]}  Rf1 {[%clk 0:00:24]} 39. f4 {[%clk 0:01:20]}  Kd5 {[%clk 0:00:23]} 40. Rxh7 {[%clk 0:01:19]}  Rf3+ {[%clk 0:00:23]} 41. Kb4 {[%clk 0:01:19]}  Rf2 {[%clk 0:00:23]} 42. a4 {[%clk 0:01:18]}  Rb2+ {[%clk 0:00:23]} 43. Ka5 {[%clk 0:01:17]}  Rb8 {[%clk 0:00:21]} 44. Rh5+ {[%clk 0:01:10]}  Kc4 {[%clk 0:00:20]} 45. Re5 {[%clk 0:01:08]}  Ra8+ {[%clk 0:00:20]} 46. Kb6 {[%clk 0:01:09]}  Rxa4 {[%clk 0:00:19]} 47. Re4+ {[%clk 0:01:09]} 1-0


[Site "https://www.chess.com"]

[Event "Titled Tuesday Blitz February 28 Early 2023"]
[White "Skvortsov, Andrei"]
[Black "Duda, Jan-Krzysztof"]
[WhiteFideId "24108600"]
[BlackFideId "1170546"]
[WhiteElo "2259"]
[BlackElo "2790"]
[Result "0-1"]
[Round "02"]
[TimeControl "180+2"]
[Date "2023.02.28"]
[WhiteClock "0:00:06"]
[BlackClock "0:00:19"]

1. e4 {[%clk 0:03:00]}  Nc6 {[%clk 0:02:59]} 2. Nc3 {[%clk 0:02:59]}  e5 {[%clk 0:02:58]} 3. Nf3 {[%clk 0:02:58]}  Bb4 {[%clk 0:02:54]} 4. Bc4 {[%clk 0:02:36]}  Bxc3 {[%clk 0:02:50]} 5. dxc3 {[%clk 0:02:36]}  Nf6 {[%clk 0:02:49]} 6. Qe2 {[%clk 0:02:36]}  d6 {[%clk 0:02:47]} 7. Bg5 {[%clk 0:02:34]}  h6 {[%clk 0:02:47]} 8. Bh4 {[%clk 0:02:34]}  g5 {[%clk 0:02:30]} 9. Bg3 {[%clk 0:02:28]}  Bg4 {[%clk 0:02:30]} 10. O-O-O {[%clk 0:02:25]}  Rg8 {[%clk 0:02:20]} 11. h3 {[%clk 0:02:17]}  Bh5 {[%clk 0:02:19]} 12. Bh2 {[%clk 0:02:15]}  Qe7 {[%clk 0:02:03]} 13. g4 {[%clk 0:02:13]}  Bg6 {[%clk 0:02:03]} 14. Nd2 {[%clk 0:02:13]}  a6 {[%clk 0:02:00]} 15. a3 {[%clk 0:02:02]}  h5 {[%clk 0:01:58]} 16. f3 {[%clk 0:02:01]}  Nd7 {[%clk 0:01:57]} 17. Bg1 {[%clk 0:02:01]}  Rh8 {[%clk 0:01:53]} 18. Be3 {[%clk 0:01:59]}  h4 {[%clk 0:01:41]} 19. Bd5 {[%clk 0:01:57]}  f6 {[%clk 0:01:38]} 20. Nb3 {[%clk 0:01:50]}  Bf7 {[%clk 0:01:35]} 21. Bxc6 {[%clk 0:01:50]}  bxc6 {[%clk 0:01:36]} 22. Na5 {[%clk 0:01:45]}  c5 {[%clk 0:01:36]} 23. Kd2 {[%clk 0:01:43]}  Nf8 {[%clk 0:01:35]} 24. Ke1 {[%clk 0:01:43]}  Qd7 {[%clk 0:01:29]} 25. Kf2 {[%clk 0:00:50]}  Ne6 {[%clk 0:01:28]} 26. b4 {[%clk 0:00:49]}  Qa4 {[%clk 0:01:26]} 27. Ra1 {[%clk 0:00:44]}  Ke7 {[%clk 0:01:02]} 28. Nb3 {[%clk 0:00:39]}  Rhd8 {[%clk 0:01:01]} 29. bxc5 {[%clk 0:00:31]}  d5 {[%clk 0:01:01]} 30. exd5 {[%clk 0:00:29]}  Rxd5 {[%clk 0:01:02]} 31. Rhd1 {[%clk 0:00:28]}  Nf4 {[%clk 0:00:57]} 32. Qf1 {[%clk 0:00:19]}  Rad8 {[%clk 0:00:56]} 33. Rxd5 {[%clk 0:00:19]}  Rxd5 {[%clk 0:00:50]} 34. Rc1 {[%clk 0:00:10]}  Rd8 {[%clk 0:00:47]} 35. Nd2 {[%clk 0:00:10]}  Bg6 {[%clk 0:00:42]} 36. c4 {[%clk 0:00:08]}  Qxa3 {[%clk 0:00:28]} 37. Bxf4 {[%clk 0:00:08]}  gxf4 {[%clk 0:00:29]} 38. Qe1 {[%clk 0:00:08]}  Rd4 {[%clk 0:00:23]} 39. Nb3 {[%clk 0:00:07]}  Rxc4 {[%clk 0:00:22]} 40. Qd2 {[%clk 0:00:07]}  Qxc1 {[%clk 0:00:20]} 41. Qd1 {[%clk 0:00:06]}  Rxc2+ {[%clk 0:00:19]} 0-1


[Site "https://www.chess.com"]

[Event "Titled Tuesday Blitz February 28 Early 2023"]
[White "Alex_Sahakyan2006"]
[Black "Le, Tuan Minh"]
[BlackFideId "12401153"]
[WhiteElo "2647"]
[BlackElo "2558"]
[Result "0-1"]
[Round "02"]
[TimeControl "180+2"]
[Date "2023.02.28"]
[WhiteClock "0:00:44"]
[BlackClock "0:01:30"]

1. c4 {[%clk 0:03:00]}  c6 {[%clk 0:02:57]} 2. Nf3 {[%clk 0:02:58]}  d5 {[%clk 0:02:54]} 3. e3 {[%clk 0:02:58]}  Nf6 {[%clk 0:02:54]} 4. Nc3 {[%clk 0:02:56]}  a6 {[%clk 0:02:54]} 5. d4 {[%clk 0:02:50]}  Bf5 {[%clk 0:02:53]} 6. b3 {[%clk 0:02:45]}  e6 {[%clk 0:02:51]} 7. Bb2 {[%clk 0:02:46]}  Nbd7 {[%clk 0:02:51]} 8. Bd3 {[%clk 0:02:44]}  Bg6 {[%clk 0:02:50]} 9. O-O {[%clk 0:02:43]}  Bd6 {[%clk 0:02:50]} 10. Ne2 {[%clk 0:02:37]}  O-O {[%clk 0:02:50]} 11. Ne5 {[%clk 0:02:37]}  a5 {[%clk 0:02:50]} 12. cxd5 {[%clk 0:02:29]}  exd5 {[%clk 0:02:48]} 13. Nxg6 {[%clk 0:02:24]}  hxg6 {[%clk 0:02:49]} 14. a3 {[%clk 0:02:22]}  Re8 {[%clk 0:02:43]} 15. Ng3 {[%clk 0:02:22]}  Nf8 {[%clk 0:02:20]} 16. Bc3 {[%clk 0:02:13]}  Qe7 {[%clk 0:02:18]} 17. Qd2 {[%clk 0:02:08]}  Bxa3 {[%clk 0:02:04]} 18. Bxa5 {[%clk 0:02:07]}  Bd6 {[%clk 0:02:01]} 19. Bc3 {[%clk 0:01:59]}  Ne6 {[%clk 0:01:58]} 20. b4 {[%clk 0:01:52]}  b5 {[%clk 0:01:45]} 21. f4 {[%clk 0:01:42]}  Nf8 {[%clk 0:01:39]} 22. Rxa8 {[%clk 0:01:35]}  Rxa8 {[%clk 0:01:40]} 23. Re1 {[%clk 0:01:13]}  Ra3 {[%clk 0:01:40]} 24. Ne2 {[%clk 0:00:55]}  N8d7 {[%clk 0:01:38]} 25. Qc1 {[%clk 0:00:51]}  Bxb4 {[%clk 0:01:34]} 26. Bxb4 {[%clk 0:00:46]}  Qxb4 {[%clk 0:01:34]} 27. Rd1 {[%clk 0:00:46]}  Nb6 {[%clk 0:01:31]} 28. Qxc6 {[%clk 0:00:45]}  Rxd3 {[%clk 0:01:31]} 29. Rxd3 {[%clk 0:00:44]}  Qe1# {[%clk 0:01:30]} 0-1


[Site "https://www.chess.com"]

[Event "Titled Tuesday Blitz February 28 Early 2023"]
[White "Bluebaum, Matthias"]
[Black "Trent, Lawrence"]
[WhiteFideId "24651516"]
[BlackFideId "408638"]
[WhiteElo "2638"]
[BlackElo "2458"]
[Result "1-0"]
[Round "02"]
[TimeControl "180+2"]
[Date "2023.02.28"]
[WhiteClock "0:00:49"]
[BlackClock "0:00:26"]

1. d4 {[%clk 0:03:00]}  Nf6 {[%clk 0:02:58]} 2. c4 {[%clk 0:03:01]}  e6 {[%clk 0:02:59]} 3. Nc3 {[%clk 0:03:02]}  d5 {[%clk 0:02:56]} 4. cxd5 {[%clk 0:03:03]}  exd5 {[%clk 0:02:55]} 5. Bf4 {[%clk 0:03:03]}  c6 {[%clk 0:02:53]} 6. e3 {[%clk 0:03:03]}  Bf5 {[%clk 0:02:53]} 7. f3 {[%clk 0:03:03]}  Bd6 {[%clk 0:02:52]} 8. g4 {[%clk 0:03:04]}  Be6 {[%clk 0:02:52]} 9. h4 {[%clk 0:02:59]}  Qc7 {[%clk 0:02:46]} 10. Nge2 {[%clk 0:02:52]}  Nbd7 {[%clk 0:02:46]} 11. Qd2 {[%clk 0:02:52]}  h5 {[%clk 0:02:30]} 12. g5 {[%clk 0:02:49]}  Ng8 {[%clk 0:02:30]} 13. Rc1 {[%clk 0:02:46]}  Bxf4 {[%clk 0:02:30]} 14. Nxf4 {[%clk 0:02:46]}  Qd6 {[%clk 0:02:28]} 15. e4 {[%clk 0:02:37]}  Ne7 {[%clk 0:02:28]} 16. Bg2 {[%clk 0:02:07]}  Ng6 {[%clk 0:02:20]} 17. Nxg6 {[%clk 0:01:45]}  fxg6 {[%clk 0:02:06]} 18. f4 {[%clk 0:01:45]}  O-O {[%clk 0:01:59]} 19. O-O {[%clk 0:01:45]}  dxe4 {[%clk 0:01:57]} 20. Nxe4 {[%clk 0:01:46]}  Qe7 {[%clk 0:01:57]} 21. Rce1 {[%clk 0:01:44]}  Rae8 {[%clk 0:01:56]} 22. Nc3 {[%clk 0:01:17]}  Qd6 {[%clk 0:01:54]} 23. d5 {[%clk 0:01:15]}  Bf5 {[%clk 0:01:48]} 24. Qf2 {[%clk 0:01:03]}  c5 {[%clk 0:01:42]} 25. Ne4 {[%clk 0:01:02]}  Qb6 {[%clk 0:01:40]} 26. Ng3 {[%clk 0:00:59]}  Bg4 {[%clk 0:01:40]} 27. b3 {[%clk 0:00:55]}  Qc7 {[%clk 0:01:27]} 28. Ne4 {[%clk 0:00:54]}  b6 {[%clk 0:01:23]} 29. d6 {[%clk 0:00:53]}  Qb8 {[%clk 0:01:22]} 30. Qd2 {[%clk 0:00:50]}  Bf5 {[%clk 0:01:20]} 31. Ng3 {[%clk 0:00:49]}  Bg4 {[%clk 0:01:10]} 32. Re7 {[%clk 0:00:49]}  b5 {[%clk 0:00:26]} 33. Rfe1 {[%clk 0:00:49]}  Qb6 {[%clk 0:00:26]} 34. Rxe8 {[%clk 0:00:49]} 1-0


[Site "https://www.chess.com"]

[Event "Titled Tuesday Blitz February 28 Early 2023"]
[White "Deac, Bogdan-Daniel"]
[Black "Kowalczyk, Pawel"]
[WhiteFideId "1226380"]
[BlackFideId "1130641"]
[WhiteElo "2649"]
[BlackElo "2324"]
[Result "1-0"]
[Round "02"]
[TimeControl "180+2"]
[Date "2023.02.28"]
[WhiteClock "0:00:03"]
[BlackClock "0:00:01"]

1. b3 {[%clk 0:03:00]}  e5 {[%clk 0:02:58]} 2. Bb2 {[%clk 0:03:00]}  Nc6 {[%clk 0:02:59]} 3. Nf3 {[%clk 0:03:01]}  d6 {[%clk 0:02:58]} 4. c4 {[%clk 0:03:00]}  Nf6 {[%clk 0:02:57]} 5. g3 {[%clk 0:03:00]}  g6 {[%clk 0:02:55]} 6. Bg2 {[%clk 0:02:59]}  Bg7 {[%clk 0:02:55]} 7. O-O {[%clk 0:02:46]}  O-O {[%clk 0:02:55]} 8. d3 {[%clk 0:02:46]}  a5 {[%clk 0:02:53]} 9. Nc3 {[%clk 0:02:45]}  h6 {[%clk 0:02:52]} 10. a3 {[%clk 0:02:44]}  Be6 {[%clk 0:02:50]} 11. e3 {[%clk 0:02:43]}  d5 {[%clk 0:02:49]} 12. cxd5 {[%clk 0:02:37]}  Nxd5 {[%clk 0:02:49]} 13. Ne4 {[%clk 0:02:37]}  Qe7 {[%clk 0:02:27]} 14. Rc1 {[%clk 0:02:32]}  Rad8 {[%clk 0:02:27]} 15. Rxc6 {[%clk 0:01:54]}  bxc6 {[%clk 0:02:27]} 16. Nxe5 {[%clk 0:01:55]}  Bxe5 {[%clk 0:02:22]} 17. Bxe5 {[%clk 0:01:52]}  f6 {[%clk 0:02:22]} 18. Bb2 {[%clk 0:01:50]}  f5 {[%clk 0:02:19]} 19. Nd2 {[%clk 0:01:47]}  Rb8 {[%clk 0:02:07]} 20. Qc2 {[%clk 0:01:42]}  c5 {[%clk 0:01:32]} 21. Nc4 {[%clk 0:01:03]}  a4 {[%clk 0:01:17]} 22. bxa4 {[%clk 0:00:59]}  Kh7 {[%clk 0:01:04]} 23. Rc1 {[%clk 0:00:32]}  Nb6 {[%clk 0:00:50]} 24. Ne5 {[%clk 0:00:30]}  Qd6 {[%clk 0:00:43]} 25. a5 {[%clk 0:00:26]}  Na4 {[%clk 0:00:39]} 26. Ba1 {[%clk 0:00:25]}  Bb3 {[%clk 0:00:39]} 27. Qe2 {[%clk 0:00:24]}  Rfe8 {[%clk 0:00:29]} 28. f4 {[%clk 0:00:20]}  Bd5 {[%clk 0:00:29]} 29. e4 {[%clk 0:00:20]}  Be6 {[%clk 0:00:28]} 30. exf5 {[%clk 0:00:14]}  Bxf5 {[%clk 0:00:28]} 31. g4 {[%clk 0:00:14]}  Bd7 {[%clk 0:00:23]} 32. Be4 {[%clk 0:00:12]}  Re6 {[%clk 0:00:22]} 33. Qf2 {[%clk 0:00:07]}  Rf8 {[%clk 0:00:20]} 34. Qg3 {[%clk 0:00:08]}  Bb5 {[%clk 0:00:20]} 35. h4 {[%clk 0:00:08]}  Ref6 {[%clk 0:00:17]} 36. h5 {[%clk 0:00:05]}  Rxf4 {[%clk 0:00:15]} 37. hxg6+ {[%clk 0:00:04]}  Kg8 {[%clk 0:00:15]} 38. g7 {[%clk 0:00:04]}  R8f6 {[%clk 0:00:13]} 39. g5 {[%clk 0:00:03]}  hxg5 {[%clk 0:00:12]} 40. Qxg5 {[%clk 0:00:04]}  Bd7 {[%clk 0:00:02]} 41. Qh5 {[%clk 0:00:03]}  Kxg7 {[%clk 0:00:01]} 42. Qh7+ {[%clk 0:00:03]}  Kf8 {[%clk 0:00:02]} 43. Qh8+ {[%clk 0:00:03]}  Ke7 {[%clk 0:00:02]} 44. Qg7+ {[%clk 0:00:04]}  Kd8 {[%clk 0:00:03]} 45. Nxd7 {[%clk 0:00:02]}  Qxd7 {[%clk 0:00:01]} 46. Bxf6+ {[%clk 0:00:02]}  Kc8 {[%clk 0:00:01]} 47. Qxd7+ {[%clk 0:00:01]}  Kxd7 {[%clk 0:00:01]} 48. Be5 {[%clk 0:00:02]}  Rg4+ {[%clk 0:00:01]} 49. Kf2 {[%clk 0:00:02]}  Rh4 {[%clk 0:00:01]} 50. Bf5+ {[%clk 0:00:03]} 1-0


[Site "https://www.chess.com"]

[Event "Titled Tuesday Blitz February 28 Early 2023"]
[White "Orlov, Georgi"]
[Black "Sarana, Alexey"]
[WhiteFideId "2011271"]
[BlackFideId "24133795"]
[WhiteElo "2638"]
[BlackElo "2717"]
[Result "0-1"]
[Round "02"]
[TimeControl "180+2"]
[Date "2023.02.28"]
[WhiteClock "0:00:05"]
[BlackClock "0:00:10"]

1. d4 {[%clk 0:02:59]}  Nf6 {[%clk 0:02:58]} 2. Nf3 {[%clk 0:02:59]}  d5 {[%clk 0:02:58]} 3. c4 {[%clk 0:02:58]}  e6 {[%clk 0:02:58]} 4. Nc3 {[%clk 0:02:56]}  Bb4 {[%clk 0:02:58]} 5. cxd5 {[%clk 0:02:54]}  exd5 {[%clk 0:02:59]} 6. Bg5 {[%clk 0:02:54]}  h6 {[%clk 0:02:58]} 7. Bh4 {[%clk 0:02:54]}  g5 {[%clk 0:02:59]} 8. Bg3 {[%clk 0:02:53]}  Ne4 {[%clk 0:02:59]} 9. Qb3 {[%clk 0:02:44]}  c5 {[%clk 0:02:32]} 10. dxc5 {[%clk 0:02:34]}  Nc6 {[%clk 0:02:29]} 11. e3 {[%clk 0:02:19]}  Be6 {[%clk 0:01:40]} 12. Bb5 {[%clk 0:02:07]}  Qa5 {[%clk 0:01:29]} 13. Bxc6+ {[%clk 0:02:06]}  bxc6 {[%clk 0:01:28]} 14. O-O {[%clk 0:02:06]}  Nxg3 {[%clk 0:01:20]} 15. hxg3 {[%clk 0:01:59]}  d4 {[%clk 0:01:21]} 16. Qa4 {[%clk 0:01:55]}  dxc3 {[%clk 0:01:02]} 17. Qxc6+ {[%clk 0:01:54]}  Ke7 {[%clk 0:01:02]} 18. Qd6+ {[%clk 0:01:35]}  Kf6 {[%clk 0:01:02]} 19. Qd4+ {[%clk 0:01:32]}  Kg6 {[%clk 0:00:56]} 20. Ne5+ {[%clk 0:01:25]}  Kh7 {[%clk 0:00:55]} 21. Nc6 {[%clk 0:00:45]}  Qxc5 {[%clk 0:00:54]} 22. Nxb4 {[%clk 0:00:42]}  Qxd4 {[%clk 0:00:53]} 23. exd4 {[%clk 0:00:42]}  cxb2 {[%clk 0:00:48]} 24. Rab1 {[%clk 0:00:42]}  a5 {[%clk 0:00:19]} 25. Nc6 {[%clk 0:00:12]}  Bd5 {[%clk 0:00:12]} 26. Ne7 {[%clk 0:00:10]}  Bc4 {[%clk 0:00:11]} 27. Rxb2 {[%clk 0:00:05]}  Bxf1 {[%clk 0:00:10]} 28. Kxf1 {[%clk 0:00:06]}  Rhb8 {[%clk 0:00:08]} 29. Rd2 {[%clk 0:00:05]}  Rb1+ {[%clk 0:00:07]} 30. Ke2 {[%clk 0:00:04]}  Re8 {[%clk 0:00:08]} 31. Kf3 {[%clk 0:00:03]}  Rxe7 {[%clk 0:00:08]} 32. d5 {[%clk 0:00:04]}  Rb4 {[%clk 0:00:08]} 33. g4 {[%clk 0:00:03]}  Rf4+ {[%clk 0:00:08]} 34. Kg3 {[%clk 0:00:03]}  Rd7 {[%clk 0:00:09]} 35. f3 {[%clk 0:00:03]}  Rf6 {[%clk 0:00:09]} 36. d6 {[%clk 0:00:04]}  Rfxd6 {[%clk 0:00:10]} 37. Rc2 {[%clk 0:00:04]}  Rd5 {[%clk 0:00:10]} 38. Rc5 {[%clk 0:00:05]}  Rxc5 {[%clk 0:00:10]} 0-1


[Site "https://www.chess.com"]

[Event "Titled Tuesday Blitz February 28 Early 2023"]
[White "Jakubowski, Krzysztof"]
[Black "Bortnyk, Olexandr"]
[WhiteFideId "1112848"]
[BlackFideId "14120828"]
[WhiteElo "2359"]
[BlackElo "2734"]
[Result "0-1"]
[Round "02"]
[TimeControl "180+2"]
[Date "2023.02.28"]
[WhiteClock "0:01:09"]
[BlackClock "0:00:18"]

1. e4 {[%clk 0:03:00]}  Nf6 {[%clk 0:02:56]} 2. e5 {[%clk 0:03:00]}  Nd5 {[%clk 0:02:56]} 3. c4 {[%clk 0:03:00]}  Nb6 {[%clk 0:02:56]} 4. d4 {[%clk 0:03:00]}  d6 {[%clk 0:02:57]} 5. exd6 {[%clk 0:03:01]}  exd6 {[%clk 0:02:58]} 6. Nc3 {[%clk 0:03:00]}  Be7 {[%clk 0:02:58]} 7. h3 {[%clk 0:03:00]}  O-O {[%clk 0:02:59]} 8. Bd3 {[%clk 0:03:00]}  c6 {[%clk 0:02:57]} 9. Nf3 {[%clk 0:02:59]}  Na6 {[%clk 0:02:57]} 10. O-O {[%clk 0:02:58]}  d5 {[%clk 0:02:45]} 11. c5 {[%clk 0:02:56]}  Nd7 {[%clk 0:02:45]} 12. a3 {[%clk 0:02:54]}  Nc7 {[%clk 0:02:45]} 13. Re1 {[%clk 0:02:53]}  Ne6 {[%clk 0:02:45]} 14. Ne2 {[%clk 0:02:50]}  Re8 {[%clk 0:02:41]} 15. b4 {[%clk 0:02:48]}  f6 {[%clk 0:02:41]} 16. Ng3 {[%clk 0:02:46]}  Ndf8 {[%clk 0:02:27]} 17. Qc2 {[%clk 0:02:43]}  g6 {[%clk 0:02:20]} 18. Bd2 {[%clk 0:02:43]}  f5 {[%clk 0:02:09]} 19. Re2 {[%clk 0:02:42]}  Bf6 {[%clk 0:02:09]} 20. Rae1 {[%clk 0:02:41]}  Bd7 {[%clk 0:02:09]} 21. Qc3 {[%clk 0:02:29]}  Qc7 {[%clk 0:02:00]} 22. Ne5 {[%clk 0:02:25]}  Re7 {[%clk 0:01:53]} 23. Nf1 {[%clk 0:02:24]}  Rae8 {[%clk 0:01:52]} 24. f4 {[%clk 0:02:24]}  a6 {[%clk 0:01:48]} 25. g3 {[%clk 0:02:23]}  Bc8 {[%clk 0:01:43]} 26. Nh2 {[%clk 0:02:23]}  Ng7 {[%clk 0:01:34]} 27. Nhf3 {[%clk 0:02:22]}  Nd7 {[%clk 0:01:11]} 28. Kh1 {[%clk 0:02:20]}  Nf8 {[%clk 0:01:11]} 29. Rg2 {[%clk 0:02:20]}  h5 {[%clk 0:01:10]} 30. Reg1 {[%clk 0:02:20]}  Qd8 {[%clk 0:01:02]} 31. Be3 {[%clk 0:02:20]}  Qc7 {[%clk 0:00:57]} 32. Qc2 {[%clk 0:02:20]}  Re6 {[%clk 0:00:55]} 33. Qf2 {[%clk 0:02:20]}  R8e7 {[%clk 0:00:43]} 34. Bd2 {[%clk 0:02:20]}  Re8 {[%clk 0:00:43]} 35. Rh2 {[%clk 0:02:20]}  R6e7 {[%clk 0:00:42]} 36. g4 {[%clk 0:02:20]}  Bxe5 {[%clk 0:00:27]} 37. Nxe5 {[%clk 0:02:15]}  fxg4 {[%clk 0:00:27]} 38. hxg4 {[%clk 0:02:15]}  Bxg4 {[%clk 0:00:17]} 39. Rxg4 {[%clk 0:01:28]}  hxg4 {[%clk 0:00:18]} 40. Qh4 {[%clk 0:01:27]}  Nh5 {[%clk 0:00:18]} 41. Nxg6 {[%clk 0:01:20]}  Nxg6 {[%clk 0:00:19]} 42. Qxh5 {[%clk 0:01:10]}  Re1+ {[%clk 0:00:18]} 43. Bxe1 {[%clk 0:01:09]}  Rxe1+ {[%clk 0:00:18]} 0-1


[Site "https://www.chess.com"]